Cogmind - Beta 13 @@@ ROGUE MODE // 2024.04.26 @ 15:20:38 Player: lzrtly Result: Destroyed by 2B-UTV(z) with Zionite Laser-S Performance ------------- Evolutions (1) 500 Regions Visited (5) 1000 Robots Destroyed (32) 160 Value Destroyed (1090) 1090 Prototype IDs (6) 120 Alien Tech Used (0) 0 Bonus (1600) 1600 TOTAL SCORE: 4470 Bonus ------- Met Imprinter 300 Was Imprinted 300 Destroyed Z-Imprinter 1000 Cogmind --------- Core Integrity 0/400 Matter 294/300 Energy 36/100 System Corruption 0% Temperature Cool (9) Movement Core (150) Ox2 Location -7/Deep Caves Parts ------- > --- POWER (1) -------- (None) > --- PROPULSION (2) --- (None) > --- UTILITY (3) ------ Experimental Heat Sink Targeting Computer Phase Shifter > --- WEAPON (3) ------- RU-N14's Throwing Claymores > --- INVENTORY (5) ---- Light Ion Engine Light Treads Grenade Launcher Rocket Launcher Peak State ------------ > --- POWER ------------ Improved Ion Engine > --- PROPULSION ------- Light Treads Light Treads > --- UTILITY ---------- Experimental Heat Sink Targeting Computer Phase Shifter > --- WEAPON ----------- Zionite Laser-S RU-N14's Throwing Claymores RU-N14's Throwing Claymores > --- INVENTORY -------- Light Ion Engine Light Treads Grenade Launcher Rocket Launcher [Rating: 37] Favorites ----------- Power Improved Ion Engine Engine Improved Ion Engine Propulsion Light Treads Treads Light Treads Utility Targeting Computer Device Seismic Detector Storage Small Storage Unit Processor Targeting Computer Protection Light Armor Plating Weapon Heavy Assault Rifle Energy Gun Particle Gun Energy Cannon Advanced Beam Cannon Ballistic Gun Heavy Assault Rifle Special Weapon RU-N14's Throwing Claymores Build | -11 -10 -9 -9 -7 -7 ------- Run | Yrd Mat Mat Min Zio Dee Slots Evolved 2 | . . 2 . . . Power . | . . . . . . Propulsion . | . . . . . . Utility 1 | . . 1 . . . Weapon 1 | . . 1 . . . Parts Attached 41 | 6 4 16 . 8 7 Power 2 | 1 . 1 . . . Engine 2 | 1 . 1 . . . Core . | . . . . . . Reactor . | . . . . . . Propulsion 9 | 2 . 6 . 1 . Treads 9 | 2 . 6 . 1 . Leg . | . . . . . . Wheel . | . . . . . . Hover . | . . . . . . Flight . | . . . . . . Utility 12 | 1 2 4 . . 5 Device 7 | . 1 2 . . 4 Storage 2 | 1 . . . . 1 Processor 2 | . 1 1 . . . Hackware . | . . . . . . Protection 1 | . . 1 . . . Artifact . | . . . . . . Weapon 18 | 2 2 5 . 7 2 Energy Gun 4 | 2 . 1 . . 1 Energy Cannon 1 | . . 1 . . . Ballistic Gun 8 | . 2 3 . 3 . Ballistic Cannon . | . . . . . . Launcher . | . . . . . . Special Weapon 5 | . . . . 4 1 Impact Weapon . | . . . . . . Slashing Weapon . | . . . . . . Piercing Weapon . | . . . . . . Special Melee Weapon . | . . . . . . Unidentified Prototypes 6 | . . 1 . 1 4 Parts Lost 6 | . . 1 . . 5 Power 1 | . . . . . 1 Propulsion 2 | . . . . . 2 Utility 1 | . . 1 . . . Weapon 2 | . . . . . 2 Highest Loss Streak 3 | . . 1 . . 3 To Critical Strikes . | . . . . . . Average Slot Usage (%) 97 | . 95 96 100 99 87 Engine 11 | . 14 11 11 11 11 Treads 22 | . 28 22 22 22 20 Device 18 | . 10 11 22 22 21 Processor 11 | . 3 16 11 11 11 Energy Gun 7 | . 2 9 11 8 4 Ballistic Gun 17 | . 25 23 22 16 . Special Weapon 6 | . . . . 7 18 Naked Turns . | . . . . . . Heaviest Build 33 | 14 15 20 18 33 28 Greatest Support 40 | 40 40 40 40 40 40 Greatest Overweight (x) 1 | 1 . . . . . Average Overweight (x) . | . . . . . . Largest Inventory Capacity 8 | 8 8 5 5 5 5 Average Capacity 5 | 6 7 5 5 5 5 Most Carried 5 | . 3 5 5 5 5 Average Carried 4 | . 1 4 5 4 4 Final Capacity 8 | 8 5 5 5 5 5 Final Carried 5 | . 3 5 5 5 4 Class Distribution -------------------- 47% | Scavenger-Gunner 33% | Gunner 17% | Mutant Dominant Class ---------------- Mutant | -10/Materials Gunner | -9/Materials Gunner | -9/Mines Scavenger-Gunner | -7/Zion Mutant | -7/Deep Caves Resources | -11 -10 -9 -9 -7 -7 ----------- Run | Yrd Mat Mat Min Zio Dee Matter Collected 950 | 210 206 415 . 10 109 Remotely . | . . . . . . Salvage Created 1241 | . 277 864 . . 100 Parts 79 | . 12 59 . . 8 Haulers Intercepted . | . . . . . . Recyclers Shooed . | . . . . . . Parts Field Recycled . | . . . . . . Retrieved Matter . | . . . . . . Parts Self-Destructed . | . . . . . . Prevented . | . . . . . . Kills | -11 -10 -9 -9 -7 -7 ------- Run | Yrd Mat Mat Min Zio Dee Combat Hostiles Destroyed 32 | . 6 21 . . 5 Guns 27 | . 6 21 . . . Cannons 1 | . . . . . 1 AOE 4 | . . . . . 4 Classes Destroyed 7 | . 3 2 . . 2 Recycler 1 | . 1 . . . . Swarmer 7 | . 3 4 . . . Grunt 10 | . 3 7 . . . Brawler 1 | . . 1 . . . Sentry 9 | . . 9 . . . Z-Light 4 | . . . . . 4 Assembled 1 | . . . . . 1 Best Kill Streak 6 | . 3 6 . . 2 Combat Bots Only 6 | . 3 6 . . 2 Max Kills in Single Turn 2 | . 2 2 . . 2 Gunslinging 1 | . 1 1 . . . Exploded 2 | . . . . . 2 Melee . | . . . . . . Uniques/NPCs Destroyed 1 | . . . . . 1 Z-Imprinter (-7/Deep Caves) Combat | -11 -10 -9 -9 -7 -7 -------- Run | Yrd Mat Mat Min Zio Dee Hostile Shots Fired 132 | . 37 68 . . 27 Missed 43 | . 7 24 . . 12 Damage Taken 1842 | . 399 562 . . 881 Core 541 | . 123 145 . . 273 Absorbed by Shields . | . . . . . . Regen/Repaired (Parts) 53 | . . . . 53 . Core Remaining (%) 75 | 100 50 . . . . Volleys Fired 71 | . 22 36 . 5 8 Largest 3 | . 2 3 . 1 2 Hottest 111 | . 40 111 . . 60 Shots Fired 166 | . 44 108 . 5 9 Gun 152 | . 44 107 . . 1 Cannon 1 | . . 1 . . . Launcher . | . . . . . . Special 13 | . . . . 5 8 Kinetic 116 | . 44 72 . . . Thermal 37 | . . 36 . . 1 Explosive 13 | . . . . 5 8 Electromagnetic . | . . . . . . Robot Hit Streak 23 | . 10 23 . . 7 Robot Miss Streak 3 | . 2 2 . . 3 Penetration Max . | . . . . . . Secondary Targets 4 | . 1 3 . . . Max Gunslinging Chain 1 | . 1 1 . . . Shots Hit Robots 115 | . 30 82 . . 3 Core Hits 54 | . 11 32 . . 11 Critical Kills 1 | . . 1 . . . Critical Parts Destroyed 1 | . . 1 . . . Critical Strikes 4 | . . 4 . . . Burn 2 | . . 2 . . . Destroy 2 | . . 2 . . . Melee Attacks . | . . . . . . Impact . | . . . . . . Slashing . | . . . . . . Piercing . | . . . . . . Sneak Attacks . | . . . . . . Combat Hostiles . | . . . . . . Follow-up Attacks . | . . . . . . Damage Inflicted 2911 | . 393 1246 . . 1272 Guns 1636 | . 393 1243 . . . Cannons . | . . . . . . Explosions 1091 | . . . . . 1091 Melee . | . . . . . . Ramming 3 | . . 3 . . . Kinetic 1197 | . 393 804 . . . Thermal 439 | . . 439 . . . Explosive 1091 | . . . . . 1091 Electromagnetic . | . . . . . . Impact . | . . . . . . Slashing 181 | . . . . . 181 Piercing . | . . . . . . Highest Corruption . | . . . . . . Average Corruption . | . . . . . . Corruption Purged . | . . . . . . Corruption Blocked . | . . . . . . Overload Shots . | . . . . . . Overflow Damage 71 | . . . . . 71 Projectiles . | . . . . . . Explosions 71 | . . . . . 71 Melee . | . . . . . . Knockbacks . | . . . . . . Impact . | . . . . . . Kinetic . | . . . . . . Secondary . | . . . . . . Self-Inflicted Damage . | . . . . . . Shots . | . . . . . . Rammed 1 | . . 1 . . . Targets Rammed 1 | . . 1 . . . Kicked . | . . . . . . Crushed . | . . . . . . Highest Temperature 341 | . 2 341 . . . Average Temperature 89 | . 2 95 . . . Received Heat Transfer 501 | . 183 183 . . 135 Effects 1 | . . 1 . . . Matter Decay 1 | . . 1 . . . Siege Activations . | . . . . . . Robots Corrupted . | . . . . . . Combat Hostiles . | . . . . . . Parts Fried . | . . . . . . Impact Corruptions . | . . . . . . Robots Melted . | . . . . . . Combat Hostiles . | . . . . . . Parts Melted 2 | . . 2 . . . Heat Transferred 1184 | . . 1184 . . . Parts Sabotaged . | . . . . . . Parts Stolen . | . . . . . . Parts Stripped . | . . . . . . Power Chain Reactions . | . . . . . . Alert | -11 -10 -9 -9 -7 -7 ------- Run | Yrd Mat Mat Min Zio Dee Peak Influence 366 | . 171 366 131 . . Initial 131 | . . 72 131 . . Average 159 | . 93 194 131 . . Maximum Alert Level 1 | . . 1 . . . Low Security (%) 64 | 100 100 49 100 . . Level 1 35 | . . 50 . . . Level 2 . | . . . . . . Level 3 . | . . . . . . Level 4 . | . . . . . . Level 5 . | . . . . . . High Security . | . . . . . . Max Security . | . . . . . . Squads Dispatched 3 | . 2 1 . . . Investigation 2 | . 2 . . . . Extermination . | . . . . . . Reinforcement 1 | . . 1 . . . Assault . | . . . . . . Garrison . | . . . . . . Intercept . | . . . . . . Searches Triggered . | . . . . . . Construction Impeded . | . . . . . . Haulers Reinforced . | . . . . . . Active Scanning Responses . | . . . . . . Cargo Convoy Interrupts . | . . . . . . Stealth | -11 -10 -9 -9 -7 -7 --------- Run | Yrd Mat Mat Min Zio Dee Distress Signals 3 | . . 3 . . . Communications Jammed . | . . . . . . Distress Signals . | . . . . . . Times Spotted 53 | . 10 34 . . 9 Peak Tracking Total 6 | . 3 6 . . 3 Tactical Retreats 1 | . . 1 . . . Traps | -11 -10 -9 -9 -7 -7 ------- Run | Yrd Mat Mat Min Zio Dee Traps Triggered 2 | . 2 . . . . Indirectly . | . . . . . . Trap Hack Attempts . | . . . . . . Triggered . | . . . . . . Disarmed . | . . . . . . Reprogrammed . | . . . . . . Reused . | . . . . . . Traps Extracted . | . . . . . . Installed . | . . . . . . Triggered . | . . . . . . Machines | -11 -10 -9 -9 -7 -7 ---------- Run | Yrd Mat Mat Min Zio Dee Machines Disabled 5 | . . 2 . 1 2 Max in Single Turn 1 | . . 1 . 1 . Machines Repaired . | . . . . . . Machines Dismantled . | . . . . . . Machines Sabotaged . | . . . . . . Overloaded Fab Kills . | . . . . . . Hacking | -11 -10 -9 -9 -7 -7 --------- Run | Yrd Mat Mat Min Zio Dee Machines Accessed 6 | . 1 5 . . . Terminals 6 | . 1 5 . . . Fabricators . | . . . . . . Repair Stations . | . . . . . . Recycling Units . | . . . . . . Scanalyzers . | . . . . . . Garrison Access . | . . . . . . Total Hacks 11 | . 2 9 . . . Successful 1 | . . 1 . . . Failed 10 | . 2 8 . . . Catastrophic 4 | . 1 3 . . . Database Lockouts . | . . . . . . Manual 12 | . 2 9 . 1 . Terminals 11 | . 2 9 . . . Fabricators . | . . . . . . Repair Stations . | . . . . . . Recycling Units . | . . . . . . Scanalyzers . | . . . . . . Garrison Access . | . . . . . . Terminal Hacks 1 | . . 1 . . . Unreport Threat 1 | . . 1 . . . Fabricator Hacks . | . . . . . . Repair Station Hacks . | . . . . . . Recycling Unit Hacks . | . . . . . . Scanalyzer . | . . . . . . Garrison Access Hacks . | . . . . . . Unauthorized Hacks . | . . . . . . Terminals . | . . . . . . Fabricators . | . . . . . . Repair Stations . | . . . . . . Recycling Units . | . . . . . . Scanalyzers . | . . . . . . Garrison Access . | . . . . . . Data Cores Recovered . | . . . . . . Used . | . . . . . . Hacking Detections 6 | . 1 5 . . . Full Trace Events 1 | . 1 . . . . Feedback Events . | . . . . . . Feedback Blocked . | . . . . . . Robot Schematics Acquired . | . . . . . . Robots Built . | . . . . . . Authchips . | . . . . . . Time . | . . . . . . Total Robot Build Rating . | . . . . . . Part Schematics Acquired . | . . . . . . Parts Built . | . . . . . . Authchips . | . . . . . . Time . | . . . . . . Total Part Build Rating . | . . . . . . Parts Repaired . | . . . . . . Time . | . . . . . . Parts Recycled . | . . . . . . Recycled Matter . | . . . . . . Retrieved Matter . | . . . . . . Retrieved Components . | . . . . . . Parts Scanalyzed . | . . . . . . Part Schematics Acquired . | . . . . . . Parts Damaged . | . . . . . . Bothacking | -11 -10 -9 -9 -7 -7 ------------ Run | Yrd Mat Mat Min Zio Dee Used RIF Installer . | . . . . . . Robots Hacked . | . . . . . . Non-combat . | . . . . . . Combat . | . . . . . . Robot Hacks Applied . | . . . . . . Relay Couplers Released . | . . . . . . Fabnet Peak Effective % . | . . . . . . Robots Rewired . | . . . . . . Allies Hacked . | . . . . . . Hacks Repelled . | . . . . . . Allies | -11 -10 -9 -9 -7 -7 -------- Run | Yrd Mat Mat Min Zio Dee Total Allies 8 | . . . . 8 . Largest Group 8 | . . . . 8 8 Highest-Rated Group 403 | . . . . 403 403 Highest-Rated Ally 96 | . . . . 96 96 Total Orders . | . . . . . . Ally Attacks 34 | . . . . . 34 Total Damage 1435 | . . . . . 1435 Kills 9 | . . . . . 9 Allies Corrupted . | . . . . . . Allies Melted . | . . . . . . Intel | -11 -10 -9 -9 -7 -7 ------- Run | Yrd Mat Mat Min Zio Dee Robot Analysis Total . | . . . . . . Derelict Logs Recovered 2 | . . . . 2 . Drone Launches . | . . . . . . Drone Recoveries . | . . . . . . Exploration | -11 -10 -9 -9 -7 -7 ------------- Run | Yrd Mat Mat Min Zio Dee Turns Passed 3547 | 62 324 915 8 1844 394 Spaces Moved 1978 | 43 148 426 6 1128 227 Core 15 | 15 . . . . . Treads 1963 | 28 148 426 6 1128 227 Legs . | . . . . . . Wheels . | . . . . . . Hover . | . . . . . . Flight . | . . . . . . Fastest Speed 50 | 50 160 160 160 160 160 Average Speed 159 | 126 160 160 160 160 160 Slowest Speed 160 | 160 160 160 160 160 160 Overloaded Moves . | . . . . . . Propulsion Burnouts . | . . . . . . Robots Hopped . | . . . . . . Cave-ins Triggered . | . . . . . . Exploration Rate (%) 36 | 4 34 49 4 89 36 Regions Visited 5 Branch Regions 3 Pre-discovered Areas 3 | . . . . 3 . Known Exits Taken . | . . . . . . Unknown Exits Taken 5 | 1 1 1 1 1 . Scrap Searched 1 | . . . . 1 . Spaces Dug . | . . . . . . Terrain Destroyed 103 | . . . . 5 98 Melee . | . . . . . . Projectile 2 | . . . . . 2 AOE 101 | . . . . 5 96 Terrain Rammed . | . . . . . . Walls Destroyed . | . . . . . . Machines Disabled . | . . . . . . Actions | -11 -10 -9 -9 -7 -7 --------- Run | Yrd Mat Mat Min Zio Dee Total 2236 | 48 191 580 5 1163 249 Wait 111 | . 12 86 . 11 2 Move 1973 | 42 147 425 5 1127 227 Hop . | . . . . . . Pick Up 9 | . 3 3 . 3 . Fast Attach 30 | 6 4 8 . 6 6 Attach 2 | . . 1 . . 1 Detach . | . . . . . . Swap 9 | . . 7 . 2 . Drop 30 | . 3 13 . 9 5 Fire 71 | . 22 36 . 5 8 Melee . | . . . . . . Ram . | . . . . . . Kick . | . . . . . . Crush 1 | . . 1 . . . Escape Stasis . | . . . . . . Rewire . | . . . . . . Trap . | . . . . . . Miscellaneous . | . . . . . . Route ------- -11/Scrapyard -10/Materials -9/Materials -9/Mines -7/Zion (discovered 2 exits: [*Dee] / [*Pro]) -7/Deep Caves History --------- Turn | Location | Event 11 | -11/Scrapyard | Discovered new exit (range 16) 63 | -11/Scrapyard | Entered Materials 330 | -10/Materials | Build established: Mutant 347 | -10/Materials | Discovered new exit (range 14) 387 | -10/Materials | Entered another Materials area 387 | -9/Materials | Evolved 2 slots: Utility x1, Weapon x1 688 | -9/Materials | Build established: Gunner 1279 | -9/Materials | Discovered new exit (range 13) 1302 | -9/Materials | Entered Mines 1303 | -9/Mines | A Derelict revealed a hidden shortcut to a safe place 1310 | -9/Mines | Entered Zion 1392 | -7/Zion | Gained Derelict followers 1442 | -7/Zion | Discovered new exit (range 14) 1578 | -7/Zion | Build established: Scavenger-Gunner 1579 | -7/Zion | Given A8's code to call for help 1780 | -7/Zion | Found CR-A16's Pointy Stick 1827 | -7/Zion | Learned Factory security intel 1981 | -7/Zion | Found Prototype Special Weapon 1981 | -7/Zion | Identified RU-N14's Throwing Claymores 1998 | -7/Zion | Found RU-N14's Throwing Claymores 2050 | -7/Zion | Learned location of Warlord (-5) 2061 | -7/Zion | Learned location of Data Miner (-6) 2376 | -7/Zion | Visited the Megawrench Repair Shop 2382 | -7/Zion | Megawrench repaired 4 parts 2753 | -7/Zion | Found RU-N14's Throwing Claymores 2756 | -7/Zion | Found RU-N14's Throwing Claymores 2882 | -7/Zion | Imprinted 2884 | -7/Zion | Declared Zion's savior 3041 | -7/Zion | Build established: Gunner 3076 | -7/Zion | Enhanced Grunt warped into view, answering call for help 3078 | -7/Zion | Enhanced Grunt warped into view, answering call for help 3134 | -7/Zion | Discovered new exit (range 5) 3138 | -7/Zion | Saw the warning signs outside the Deep Caves entrance 3154 | -7/Zion | Entered Deep Caves 3154 | -7/Deep Caves | Accompanied by 8 allies 3294 | -7/Deep Caves | Z-Facility disabled 3297 | -7/Deep Caves | Attacked by Z-Imprinter 3313 | -7/Deep Caves | Allies destroyed Z-Imprinter 3485 | -7/Deep Caves | Core integrity fell below 50% 3485 | -7/Deep Caves | Core integrity fell below 20% 3548 | -7/Deep Caves | Destroyed by 2B-UTV(z) with Zionite Laser-S Last Messages --------------- 03381_ Identified Zio. Laser-S. 03384_ Extracted 32 energy. 03389_ The unstable cave ceiling collapses. 03484_ Z-Power explodes. 03484_ VR-E4A(o) destroyed. 03484_ Enhanced Grunt destroyed. 03484_ Lgt. Treads destroyed. 03484_ RU-N14's Throwing Claymores destroyed. 03484_ Enhanced Grunt destroyed. 03542_ Destroyed Zio. Biocell. 03542_ Destroyed Prototype Hover Unit. 03542_ Zio. Laser-S destroyed. 03544_ Lgt. Treads destroyed. 03544_ Imp. Ion Engine destroyed. 03547_ Destroyed Phase Shifter. 03547_ Destroyed Prototype Protection. 03547_ 5W-47M(z) destroyed. 03547_ Destroyed Imp. Reaction Control System. 03547_ R1-E92(z) destroyed. 03548_ The unstable cave ceiling collapses. Map ----- +----------------------------------------------------+ | ?????????????????????????"""""""""" | | ????????????????????????????""""" | | ???????????????????????????""" | | ?????????????????????????""" | | ????????????????????? ?""" | | ??????????????????? "" | | ??????????????????? " | | ?????????????????? " % | | ?????????????????? | | ????????????????? | | ????????????????? | | ????????????????? | | ???????????????? | | ???????????????? | | ?????????????? | | ?????????????? | | ????????????? | | ????????????? | | ???????????? | | ???????????? | | ???????????? | | ??????????? | | ??????????? | | ?????????? | | ?????????? | | ?????????? @ | | ?????????? | | ?????????? ! | | ??????????? z% """"# | | ??????????? %=;# ;;""####???? | | ???????????? # #?## ;; ###??????? | | ???????????? ????### ########????????? | | ???????????? ????????###########???????????????? | | ?????????????????????????????????????????????????? | | | | | | | | | | | | | | | | | | | | | | | | | | | | | | | | | +----------------------------------------------------+ Best States ------------- Heat Dissipation 54 Energy Generation 12 Energy Capacity 865 Matter Stores 300 Matter Capacity 300 Sight Range 16 Terrain Scan Density 10 Armor Coverage 150 Phase Shifting 5 Evasion (%) 50 Targeting Accuracy 10 Recoil Reduction 2 Item Schematics ----------------- None Robot Schematics ------------------ None Fabricated ------------ Nothing Alien Tech Used ----------------- None Achievements -------------- Are We The Baddies? Help From High Places Challenges ------------ None Game ------ Seed ActuatorGuidedField Manual? 0 Play Time 00:20:27 Cumulative 27.5 hours Start 2024.04.26 @ 15:00:34 End 2024.04.26 @ 15:20:38 Sessions 1 Manual Loads 0 Difficulty Rogue Special Mode None Game No. 29 Rogue 29 Adventurer 0 Explorer 0 Win Type - Total 1 Types 0/0/1/0/0/0/0/0/0 Lore% 31 Gallery% 41 Achievement% 35 Wizard Run 0 Options --------- Layout 1 ASCII 0 Keyboard 0 Movement Numpad Keybinds 0 Fullscreen 1 Font 20/SmallcapsGlow Map View 52x40 Zoom Use 0% Tactical HUD 1 Map Filters NONE Filters NONE Steam 1 RUN: 193b4c27-22c0-4222-8107-90d2ac8f97ac